[Event "Titled Tuesday Blitz April 12 Early 2022"]
[White "Zaksaite, Salomeja"]
[Black "Yurovskykh, Oleksandr"]
[WhiteFideId "12801496"]
[BlackFideId "14134020"]
[WhiteElo "1953"]
[BlackElo "2292"]
[Result "0-1"]
[Round "01"]
[TimeControl "180+1"]
[Date "2022.04.13"]
[WhiteClock "0:00:01"]
[BlackClock "0:00:11"]

1. e4 {[%clk 0:03:00]}  d5 {[%clk 0:02:52]} 2. exd5 {[%clk 0:02:58]}  Qxd5 {[%clk 0:02:52]} 3. Nc3 {[%clk 0:02:58]}  Qd8 {[%clk 0:02:52]} 4. Bc4 {[%clk 0:02:55]}  c5 {[%clk 0:02:52]} 5. Qf3 {[%clk 0:02:53]}  Nf6 {[%clk 0:02:48]} 6. d3 {[%clk 0:02:53]}  Nc6 {[%clk 0:02:48]} 7. Nge2 {[%clk 0:02:48]}  e6 {[%clk 0:02:36]} 8. Bg5 {[%clk 0:02:46]}  Be7 {[%clk 0:02:36]} 9. h3 {[%clk 0:02:36]}  O-O {[%clk 0:02:34]} 10. O-O {[%clk 0:02:35]}  Bd7 {[%clk 0:01:55]} 11. a3 {[%clk 0:02:33]}  a6 {[%clk 0:01:33]} 12. Ba2 {[%clk 0:02:23]}  Nd4 {[%clk 0:01:26]} 13. Nxd4 {[%clk 0:02:20]}  cxd4 {[%clk 0:01:26]} 14. Ne4 {[%clk 0:02:15]}  Bc6 {[%clk 0:01:21]} 15. Nxf6+ {[%clk 0:02:13]}  Bxf6 {[%clk 0:01:19]} 16. Bxf6 {[%clk 0:02:12]}  Qxf6 {[%clk 0:01:11]} 17. Qxf6 {[%clk 0:02:12]}  gxf6 {[%clk 0:01:12]} 18. Rfe1 {[%clk 0:02:12]}  Kh8 {[%clk 0:01:10]} 19. f3 {[%clk 0:02:11]}  Rg8 {[%clk 0:01:09]} 20. Kf2 {[%clk 0:02:12]}  h5 {[%clk 0:01:07]} 21. h4 {[%clk 0:02:11]}  Rac8 {[%clk 0:01:06]} 22. c3 {[%clk 0:02:10]}  dxc3 {[%clk 0:01:02]} 23. bxc3 {[%clk 0:02:11]}  Rgd8 {[%clk 0:00:59]} 24. d4 {[%clk 0:02:09]}  Bd5 {[%clk 0:00:58]} 25. Bxd5 {[%clk 0:01:58]}  Rxd5 {[%clk 0:00:59]} 26. Rab1 {[%clk 0:01:54]}  Rxc3 {[%clk 0:00:51]} 27. Rxb7 {[%clk 0:01:54]}  Kg8 {[%clk 0:00:51]} 28. Reb1 {[%clk 0:00:31]}  Rxd4 {[%clk 0:00:39]} 29. Ra7 {[%clk 0:00:30]}  Rd2+ {[%clk 0:00:37]} 30. Kg3 {[%clk 0:00:31]}  Rcc2 {[%clk 0:00:37]} 31. Rb8+ {[%clk 0:00:20]}  Kg7 {[%clk 0:00:37]} 32. Rbb7 {[%clk 0:00:21]}  Rxg2+ {[%clk 0:00:15]} 33. Kf4 {[%clk 0:00:19]}  Rc4+ {[%clk 0:00:14]} 34. Ke3 {[%clk 0:00:19]}  Ra2 {[%clk 0:00:12]} 35. Rxf7+ {[%clk 0:00:18]}  Kg6 {[%clk 0:00:13]} 36. Rg7+ {[%clk 0:00:15]}  Kf5 {[%clk 0:00:13]} 37. Rxa6 {[%clk 0:00:14]}  Rc3+ {[%clk 0:00:13]} 38. Kd4 {[%clk 0:00:14]}  Rxf3 {[%clk 0:00:12]} 39. Rh7 {[%clk 0:00:12]}  e5+ {[%clk 0:00:11]} 40. Kc5 {[%clk 0:00:10]}  Rfxa3 {[%clk 0:00:08]} 41. Rxh5+ {[%clk 0:00:05]}  Kg6 {[%clk 0:00:08]} 42. Rxa3 {[%clk 0:00:05]}  Rxa3 {[%clk 0:00:08]} 43. Rh8 {[%clk 0:00:05]}  Rd3 {[%clk 0:00:08]} 44. h5+ {[%clk 0:00:04]}  Kg7 {[%clk 0:00:09]} 45. Re8 {[%clk 0:00:03]}  Rh3 {[%clk 0:00:08]} 46. Re7+ {[%clk 0:00:03]}  Kh6 {[%clk 0:00:09]} 47. Re6 {[%clk 0:00:03]}  Kg5 {[%clk 0:00:09]} 48. Kd5 {[%clk 0:00:02]}  Rxh5 {[%clk 0:00:10]} 49. Ke4 {[%clk 0:00:02]}  Rh4+ {[%clk 0:00:10]} 50. Ke3 {[%clk 0:00:02]}  Kf5 {[%clk 0:00:10]} 51. Re8 {[%clk 0:00:02]}  Rh3+ {[%clk 0:00:10]} 52. Kf2 {[%clk 0:00:02]}  Ra3 {[%clk 0:00:11]} 53. Rb8 {[%clk 0:00:02]}  e4 {[%clk 0:00:11]} 54. Rb4 {[%clk 0:00:01]}  Kf4 {[%clk 0:00:11]} 0-1


[Site "https://www.chess.com"]

[Event "Titled Tuesday Blitz April 12 Early 2022"]
[White "Zemlyanskii, Ivan"]
[Black "Gatterer, Florian"]
[WhiteFideId "24249971"]
[BlackFideId "811688"]
[WhiteElo "1759"]
[BlackElo "2218"]
[Result "1-0"]
[Round "01"]
[TimeControl "180+1"]
[Date "2022.04.13"]
[WhiteClock "0:00:11"]
[BlackClock "0:00:06"]

1. d4 {[%clk 0:02:55]}  Nf6 {[%clk 0:02:58]} 2. c4 {[%clk 0:02:55]}  e6 {[%clk 0:02:52]} 3. Nc3 {[%clk 0:02:52]}  Bb4 {[%clk 0:02:50]} 4. e3 {[%clk 0:02:52]}  O-O {[%clk 0:02:48]} 5. Ne2 {[%clk 0:02:52]}  c6 {[%clk 0:02:45]} 6. a3 {[%clk 0:02:50]}  Ba5 {[%clk 0:02:45]} 7. c5 {[%clk 0:02:50]}  d5 {[%clk 0:02:44]} 8. cxd6 {[%clk 0:02:50]}  Qxd6 {[%clk 0:02:41]} 9. b4 {[%clk 0:02:51]}  Bc7 {[%clk 0:02:40]} 10. g3 {[%clk 0:02:51]}  Nbd7 {[%clk 0:02:37]} 11. Bg2 {[%clk 0:02:51]}  e5 {[%clk 0:02:37]} 12. O-O {[%clk 0:02:49]}  exd4 {[%clk 0:02:34]} 13. exd4 {[%clk 0:02:44]}  Nb6 {[%clk 0:02:32]} 14. b5 {[%clk 0:02:40]}  Nbd5 {[%clk 0:02:26]} 15. a4 {[%clk 0:02:23]}  Re8 {[%clk 0:01:56]} 16. Ba3 {[%clk 0:02:13]}  Qd8 {[%clk 0:01:56]} 17. Nxd5 {[%clk 0:02:07]}  Nxd5 {[%clk 0:01:53]} 18. h3 {[%clk 0:01:59]}  cxb5 {[%clk 0:01:44]} 19. axb5 {[%clk 0:01:59]}  Be6 {[%clk 0:01:43]} 20. Rc1 {[%clk 0:01:52]}  Bb6 {[%clk 0:01:43]} 21. Qd3 {[%clk 0:01:46]}  Qd7 {[%clk 0:01:40]} 22. Bc5 {[%clk 0:01:41]}  Bxh3 {[%clk 0:01:27]} 23. Bxh3 {[%clk 0:01:12]}  Qxh3 {[%clk 0:01:25]} 24. Qf3 {[%clk 0:01:13]}  Qe6 {[%clk 0:01:11]} 25. Rfe1 {[%clk 0:01:12]}  Qe4 {[%clk 0:01:06]} 26. Kg2 {[%clk 0:00:54]}  h6 {[%clk 0:01:05]} 27. Bxb6 {[%clk 0:00:51]}  axb6 {[%clk 0:01:01]} 28. Qxe4 {[%clk 0:00:37]}  Rxe4 {[%clk 0:01:01]} 29. Kf3 {[%clk 0:00:36]}  Rae8 {[%clk 0:00:55]} 30. Rc2 {[%clk 0:00:32]}  f6 {[%clk 0:00:54]} 31. Rec1 {[%clk 0:00:28]}  g5 {[%clk 0:00:47]} 32. g4 {[%clk 0:00:26]}  R8e7 {[%clk 0:00:39]} 33. Rd2 {[%clk 0:00:21]}  Kh7 {[%clk 0:00:37]} 34. Rc8 {[%clk 0:00:19]}  Re8 {[%clk 0:00:34]} 35. Rxe8 {[%clk 0:00:17]}  Rxe8 {[%clk 0:00:35]} 36. Ng3 {[%clk 0:00:18]}  Re1 {[%clk 0:00:27]} 37. Rc2 {[%clk 0:00:15]}  Rd1 {[%clk 0:00:24]} 38. Nf5 {[%clk 0:00:15]}  Rd3+ {[%clk 0:00:19]} 39. Ke4 {[%clk 0:00:15]}  Rd1 {[%clk 0:00:14]} 40. Rc8 {[%clk 0:00:14]}  Nf4 {[%clk 0:00:11]} 41. Rd8 {[%clk 0:00:13]}  Re1+ {[%clk 0:00:10]} 42. Kf3 {[%clk 0:00:13]}  h5 {[%clk 0:00:11]} 43. Rd7+ {[%clk 0:00:13]}  Kh8 {[%clk 0:00:10]} 44. gxh5 {[%clk 0:00:12]}  Nxh5 {[%clk 0:00:10]} 45. d5 {[%clk 0:00:13]}  Rd1 {[%clk 0:00:09]} 46. d6 {[%clk 0:00:14]}  Nf4 {[%clk 0:00:08]} 47. Re7 {[%clk 0:00:13]}  Rd5 {[%clk 0:00:07]} 48. d7 {[%clk 0:00:12]}  Ng6 {[%clk 0:00:07]} 49. Re8+ {[%clk 0:00:11]}  Kh7 {[%clk 0:00:07]} 50. d8=Q {[%clk 0:00:12]}  Ne5+ {[%clk 0:00:07]} 51. Ke4 {[%clk 0:00:10]}  Rxd8 {[%clk 0:00:06]} 52. Rxd8 {[%clk 0:00:11]}  Kg6 {[%clk 0:00:06]} 53. Ne7+ {[%clk 0:00:11]} 1-0


[Site "https://www.chess.com"]

[Event "Titled Tuesday Blitz April 12 Early 2022"]
[White "Zhigalko, Sergei"]
[Black "Lamaze, Simon"]
[WhiteFideId "13502956"]
[BlackFideId "36069264"]
[WhiteElo "2662"]
[BlackElo "1999"]
[Result "1-0"]
[Round "01"]
[TimeControl "180+1"]
[Date "2022.04.12"]
[WhiteClock "0:00:05"]
[BlackClock "0:00:16"]

1. e4 {[%clk 0:03:00]}  c5 {[%clk 0:02:59]} 2. Nf3 {[%clk 0:03:00]}  Nc6 {[%clk 0:02:59]} 3. c3 {[%clk 0:02:59]}  Nf6 {[%clk 0:02:59]} 4. e5 {[%clk 0:02:59]}  Nd5 {[%clk 0:02:59]} 5. Bc4 {[%clk 0:02:58]}  Nb6 {[%clk 0:02:59]} 6. Bb3 {[%clk 0:02:58]}  c4 {[%clk 0:03:00]} 7. Bc2 {[%clk 0:02:59]}  g5 {[%clk 0:03:00]} 8. Nxg5 {[%clk 0:02:41]}  Nxe5 {[%clk 0:02:57]} 9. Qh5 {[%clk 0:02:26]}  Bg7 {[%clk 0:02:13]} 10. O-O {[%clk 0:02:14]}  h6 {[%clk 0:02:01]} 11. Nf3 {[%clk 0:02:01]}  Nd3 {[%clk 0:01:53]} 12. Bxd3 {[%clk 0:01:41]}  cxd3 {[%clk 0:01:54]} 13. Qf5 {[%clk 0:01:40]}  d6 {[%clk 0:01:47]} 14. Qxd3 {[%clk 0:01:40]}  Qd7 {[%clk 0:01:47]} 15. Re1 {[%clk 0:01:37]}  O-O {[%clk 0:01:43]} 16. Qe2 {[%clk 0:01:24]}  Re8 {[%clk 0:01:13]} 17. d4 {[%clk 0:01:24]}  Qg4 {[%clk 0:01:13]} 18. Nbd2 {[%clk 0:01:17]}  Qh5 {[%clk 0:01:06]} 19. Ne4 {[%clk 0:01:10]}  Bd7 {[%clk 0:01:05]} 20. Ng3 {[%clk 0:01:08]}  Qg6 {[%clk 0:01:05]} 21. Nh4 {[%clk 0:01:07]}  Qe6 {[%clk 0:00:44]} 22. Nhf5 {[%clk 0:00:59]}  Kh7 {[%clk 0:00:29]} 23. Nxg7 {[%clk 0:00:37]}  Qxe2 {[%clk 0:00:23]} 24. Rxe2 {[%clk 0:00:34]}  Kxg7 {[%clk 0:00:24]} 25. b3 {[%clk 0:00:27]}  Nd5 {[%clk 0:00:20]} 26. c4 {[%clk 0:00:27]}  Nf6 {[%clk 0:00:20]} 27. d5 {[%clk 0:00:23]}  Rac8 {[%clk 0:00:19]} 28. Bb2 {[%clk 0:00:23]}  Kg6 {[%clk 0:00:19]} 29. a4 {[%clk 0:00:23]}  a6 {[%clk 0:00:19]} 30. Rae1 {[%clk 0:00:24]}  e5 {[%clk 0:00:18]} 31. dxe6 {[%clk 0:00:21]}  Bxe6 {[%clk 0:00:19]} 32. Bxf6 {[%clk 0:00:14]}  Kxf6 {[%clk 0:00:20]} 33. f4 {[%clk 0:00:14]}  b5 {[%clk 0:00:19]} 34. cxb5 {[%clk 0:00:04]}  axb5 {[%clk 0:00:20]} 35. Ne4+ {[%clk 0:00:04]}  Kg7 {[%clk 0:00:15]} 36. Nxd6 {[%clk 0:00:04]}  Red8 {[%clk 0:00:15]} 37. Nxc8 {[%clk 0:00:04]}  Rxc8 {[%clk 0:00:16]} 38. axb5 {[%clk 0:00:05]}  Rb8 {[%clk 0:00:16]} 39. Re5 {[%clk 0:00:05]}  Bxb3 {[%clk 0:00:16]} 40. Rb1 {[%clk 0:00:05]}  Bc4 {[%clk 0:00:16]} 41. Rb4 {[%clk 0:00:05]}  Bd3 {[%clk 0:00:16]} 42. Rd5 {[%clk 0:00:05]}  Be4 {[%clk 0:00:16]} 43. Rxe4 {[%clk 0:00:05]} 1-0


[Site "https://www.chess.com"]

[Event "Titled Tuesday Blitz April 12 Early 2022"]
[White "Zia, Tahsin Tajwar"]
[Black "Svane, Frederik"]
[WhiteFideId "10211888"]
[BlackFideId "12923044"]
[WhiteElo "2452"]
[BlackElo "2830"]
[Result "0-1"]
[Round "01"]
[TimeControl "180+1"]
[Date "2022.04.13"]
[WhiteClock "0:00:05"]
[BlackClock "0:00:10"]

1. d4 {[%clk 0:03:00]}  Nf6 {[%clk 0:02:44]} 2. c4 {[%clk 0:02:59]}  e6 {[%clk 0:02:44]} 3. g3 {[%clk 0:02:59]}  d5 {[%clk 0:02:41]} 4. Bg2 {[%clk 0:02:59]}  Bb4+ {[%clk 0:02:37]} 5. Bd2 {[%clk 0:02:57]}  Be7 {[%clk 0:02:26]} 6. Nf3 {[%clk 0:02:56]}  O-O {[%clk 0:02:19]} 7. Qc2 {[%clk 0:02:56]}  c6 {[%clk 0:02:17]} 8. h4 {[%clk 0:02:52]}  b6 {[%clk 0:02:04]} 9. Nc3 {[%clk 0:02:47]}  Ba6 {[%clk 0:02:03]} 10. b3 {[%clk 0:02:32]}  Nbd7 {[%clk 0:01:53]} 11. e4 {[%clk 0:02:27]}  c5 {[%clk 0:01:08]} 12. exd5 {[%clk 0:01:48]}  exd5 {[%clk 0:01:08]} 13. Ng5 {[%clk 0:01:38]}  dxc4 {[%clk 0:00:58]} 14. bxc4 {[%clk 0:01:22]}  cxd4 {[%clk 0:00:53]} 15. Nd5 {[%clk 0:01:22]}  Rc8 {[%clk 0:00:51]} 16. O-O {[%clk 0:01:05]}  Bxc4 {[%clk 0:00:48]} 17. Nxe7+ {[%clk 0:01:00]}  Qxe7 {[%clk 0:00:49]} 18. Rfe1 {[%clk 0:01:00]}  Qc5 {[%clk 0:00:46]} 19. Qb2 {[%clk 0:00:47]}  a5 {[%clk 0:00:33]} 20. Rac1 {[%clk 0:00:40]}  Ne5 {[%clk 0:00:33]} 21. Ne4 {[%clk 0:00:35]}  Nxe4 {[%clk 0:00:31]} 22. Bxe4 {[%clk 0:00:35]}  Rfd8 {[%clk 0:00:16]} 23. Bf4 {[%clk 0:00:32]}  Ng6 {[%clk 0:00:14]} 24. Bg5 {[%clk 0:00:30]}  Re8 {[%clk 0:00:14]} 25. h5 {[%clk 0:00:25]}  Ne5 {[%clk 0:00:12]} 26. Bf4 {[%clk 0:00:23]}  h6 {[%clk 0:00:12]} 27. Qc2 {[%clk 0:00:21]}  Ng4 {[%clk 0:00:07]} 28. Qd2 {[%clk 0:00:14]}  Nf6 {[%clk 0:00:07]} 29. Bf3 {[%clk 0:00:12]}  Rxe1+ {[%clk 0:00:07]} 30. Qxe1 {[%clk 0:00:12]}  Qf5 {[%clk 0:00:06]} 31. Qe5 {[%clk 0:00:10]}  Qxe5 {[%clk 0:00:06]} 32. Bxe5 {[%clk 0:00:11]}  d3 {[%clk 0:00:06]} 33. Bf4 {[%clk 0:00:08]}  Be6 {[%clk 0:00:05]} 34. Rd1 {[%clk 0:00:08]}  Rd8 {[%clk 0:00:05]} 35. Be2 {[%clk 0:00:07]}  Bg4 {[%clk 0:00:03]} 36. Rxd3 {[%clk 0:00:06]}  Rxd3 {[%clk 0:00:04]} 37. Bxd3 {[%clk 0:00:07]}  Be6 {[%clk 0:00:05]} 38. Be3 {[%clk 0:00:07]}  Nd5 {[%clk 0:00:04]} 39. Bd4 {[%clk 0:00:06]}  Nb4 {[%clk 0:00:05]} 40. Bb5 {[%clk 0:00:06]}  Nd5 {[%clk 0:00:05]} 41. a4 {[%clk 0:00:05]}  Kf8 {[%clk 0:00:06]} 42. f3 {[%clk 0:00:06]}  Ke7 {[%clk 0:00:06]} 43. Kf2 {[%clk 0:00:06]}  Kd6 {[%clk 0:00:07]} 44. Bxg7 {[%clk 0:00:06]}  Nc7 {[%clk 0:00:03]} 45. Bf8+ {[%clk 0:00:07]}  Ke5 {[%clk 0:00:03]} 46. f4+ {[%clk 0:00:06]}  Kd4 {[%clk 0:00:03]} 47. Bg7+ {[%clk 0:00:05]}  Ke4 {[%clk 0:00:03]} 48. Bc6+ {[%clk 0:00:05]}  Bd5 {[%clk 0:00:03]} 49. Bxd5+ {[%clk 0:00:04]}  Nxd5 {[%clk 0:00:04]} 50. Bxh6 {[%clk 0:00:05]}  Kf5 {[%clk 0:00:05]} 51. Bg7 {[%clk 0:00:05]}  f6 {[%clk 0:00:05]} 52. Kf3 {[%clk 0:00:05]}  Ke6 {[%clk 0:00:05]} 53. g4 {[%clk 0:00:04]}  Kf7 {[%clk 0:00:06]} 54. Bh6 {[%clk 0:00:04]}  Nc3 {[%clk 0:00:06]} 55. g5 {[%clk 0:00:04]}  b5 {[%clk 0:00:06]} 56. g6+ {[%clk 0:00:05]}  Kg8 {[%clk 0:00:06]} 57. Kg4 {[%clk 0:00:05]}  bxa4 {[%clk 0:00:06]} 58. Kf5 {[%clk 0:00:05]}  a3 {[%clk 0:00:07]} 59. Kxf6 {[%clk 0:00:04]}  a2 {[%clk 0:00:08]} 60. Bg7 {[%clk 0:00:03]}  a1=Q {[%clk 0:00:08]} 61. h6 {[%clk 0:00:04]}  Nd5+ {[%clk 0:00:08]} 62. Kg5 {[%clk 0:00:04]}  Qg1+ {[%clk 0:00:08]} 63. Kf5 {[%clk 0:00:04]}  Ne7+ {[%clk 0:00:09]} 64. Kf6 {[%clk 0:00:05]}  Qxg6+ {[%clk 0:00:09]} 65. Kxe7 {[%clk 0:00:05]}  a4 {[%clk 0:00:10]} 66. f5 {[%clk 0:00:05]}  Qxf5 {[%clk 0:00:10]} 0-1


[Site "https://www.chess.com"]

[Event "Titled Tuesday Blitz April 12 Early 2022"]
[White "parintele_chess"]
[Black "Khripachenko, Alexander"]
[BlackFideId "54184975"]
[WhiteElo "2258"]
[BlackElo "2193"]
[Result "0-1"]
[Round "01"]
[TimeControl "180+1"]
[Date "2022.04.13"]
[WhiteClock "0:00:46"]
[BlackClock "0:01:35"]

1. d4 {[%clk 0:02:59]}  Nf6 {[%clk 0:02:59]} 2. Bf4 {[%clk 0:02:58]}  g6 {[%clk 0:02:54]} 3. Nc3 {[%clk 0:02:55]}  d5 {[%clk 0:02:54]} 4. e3 {[%clk 0:02:54]}  Bg7 {[%clk 0:02:54]} 5. Bd3 {[%clk 0:02:54]}  O-O {[%clk 0:02:54]} 6. h4 {[%clk 0:02:54]}  c5 {[%clk 0:02:55]} 7. h5 {[%clk 0:02:53]}  Nc6 {[%clk 0:02:54]} 8. hxg6 {[%clk 0:02:45]}  fxg6 {[%clk 0:02:53]} 9. dxc5 {[%clk 0:02:39]}  Qa5 {[%clk 0:02:50]} 10. Bh6 {[%clk 0:01:49]}  Qxc5 {[%clk 0:02:38]} 11. Bxg7 {[%clk 0:01:46]}  Kxg7 {[%clk 0:02:39]} 12. Qf3 {[%clk 0:01:23]}  e5 {[%clk 0:02:00]} 13. Qg3 {[%clk 0:01:22]}  e4 {[%clk 0:01:57]} 14. Be2 {[%clk 0:01:16]}  d4 {[%clk 0:01:43]} 15. Qc7+ {[%clk 0:01:11]}  Rf7 {[%clk 0:01:39]} 16. exd4 {[%clk 0:00:51]}  Qxc3+ {[%clk 0:01:36]} 17. bxc3 {[%clk 0:00:52]}  Rxc7 {[%clk 0:01:36]} 18. Kd2 {[%clk 0:00:49]}  Be6 {[%clk 0:01:36]} 19. Ke3 {[%clk 0:00:47]}  Rac8 {[%clk 0:01:36]} 20. c4 {[%clk 0:00:46]}  Nb4 {[%clk 0:01:35]} 0-1


[Site "https://www.chess.com"]

[Event "Titled Tuesday Blitz April 12 Early 2022"]
[White "Abdilkhair, Abilmansur"]
[Black "Osmonbekov, Talaibek"]
[WhiteFideId "13716417"]
[BlackFideId "2017253"]
[WhiteElo "2108"]
[BlackElo "2135"]
[Result "1-0"]
[Round "02"]
[TimeControl "180+1"]
[Date "2022.04.13"]
[WhiteClock "0:00:06"]
[BlackClock "0:00:15"]

1. e4 {[%clk 0:02:16]}  c5 {[%clk 0:02:59]} 2. Nf3 {[%clk 0:02:14]}  d6 {[%clk 0:02:58]} 3. Bb5+ {[%clk 0:02:13]}  Nd7 {[%clk 0:02:57]} 4. Ba4 {[%clk 0:02:12]}  a6 {[%clk 0:02:56]} 5. c4 {[%clk 0:02:12]}  Nf6 {[%clk 0:02:51]} 6. O-O {[%clk 0:02:11]}  Nxe4 {[%clk 0:02:40]} 7. Re1 {[%clk 0:02:09]}  Nf6 {[%clk 0:02:37]} 8. d4 {[%clk 0:02:07]}  cxd4 {[%clk 0:02:30]} 9. Nxd4 {[%clk 0:02:08]}  g6 {[%clk 0:02:16]} 10. Bf4 {[%clk 0:02:01]}  Qb6 {[%clk 0:02:03]} 11. Nb3 {[%clk 0:01:08]}  e5 {[%clk 0:01:43]} 12. c5 {[%clk 0:01:04]}  Qc7 {[%clk 0:01:37]} 13. Na3 {[%clk 0:00:37]}  Be7 {[%clk 0:01:21]} 14. Nc4 {[%clk 0:00:27]}  exf4 {[%clk 0:00:55]} 15. Qxd6 {[%clk 0:00:08]}  Qxd6 {[%clk 0:00:36]} 16. cxd6 {[%clk 0:00:09]}  b5 {[%clk 0:00:28]} 17. dxe7 {[%clk 0:00:06]}  bxc4 {[%clk 0:00:21]} 18. Na5 {[%clk 0:00:06]}  Rb8 {[%clk 0:00:16]} 19. Nxc4 {[%clk 0:00:06]}  Rb4 {[%clk 0:00:15]} 20. Nd6# {[%clk 0:00:06]} 1-0


[Site "https://www.chess.com"]

[Event "Titled Tuesday Blitz April 12 Early 2022"]
[White "Abdrlauf, Elham"]
[Black "Djokic, Mihailo"]
[WhiteFideId "1533533"]
[BlackFideId "976440"]
[WhiteElo "2334"]
[BlackElo "2202"]
[Result "1-0"]
[Round "02"]
[TimeControl "180+1"]
[Date "2022.04.12"]
[WhiteClock "0:00:36"]
[BlackClock "0:00:01"]

1. Nf3 {[%clk 0:03:00]}  Nf6 {[%clk 0:02:53]} 2. g3 {[%clk 0:02:59]}  g6 {[%clk 0:02:50]} 3. Bg2 {[%clk 0:02:59]}  Bg7 {[%clk 0:02:50]} 4. O-O {[%clk 0:02:59]}  O-O {[%clk 0:02:51]} 5. c4 {[%clk 0:02:58]}  d6 {[%clk 0:02:46]} 6. Nc3 {[%clk 0:02:59]}  Nc6 {[%clk 0:02:44]} 7. d4 {[%clk 0:02:59]}  a6 {[%clk 0:02:44]} 8. b3 {[%clk 0:02:58]}  Rb8 {[%clk 0:02:44]} 9. Bb2 {[%clk 0:02:56]}  b5 {[%clk 0:02:42]} 10. cxb5 {[%clk 0:02:55]}  axb5 {[%clk 0:02:43]} 11. Rc1 {[%clk 0:02:56]}  Bd7 {[%clk 0:02:40]} 12. d5 {[%clk 0:02:50]}  Na5 {[%clk 0:02:33]} 13. Nd4 {[%clk 0:02:46]}  b4 {[%clk 0:02:17]} 14. Na4 {[%clk 0:02:32]}  e5 {[%clk 0:02:01]} 15. dxe6 {[%clk 0:02:27]}  fxe6 {[%clk 0:02:02]} 16. Nc6 {[%clk 0:02:05]}  Nxc6 {[%clk 0:01:51]} 17. Bxc6 {[%clk 0:02:06]}  Bxc6 {[%clk 0:01:43]} 18. Rxc6 {[%clk 0:02:06]}  Nd5 {[%clk 0:01:32]} 19. Bxg7 {[%clk 0:02:03]}  Kxg7 {[%clk 0:00:55]} 20. Qd4+ {[%clk 0:01:54]}  Kg8 {[%clk 0:00:50]} 21. Rfc1 {[%clk 0:01:53]}  Rf7 {[%clk 0:00:30]} 22. e4 {[%clk 0:01:47]}  Nf6 {[%clk 0:00:21]} 23. Qc4 {[%clk 0:01:27]}  d5 {[%clk 0:00:17]} 24. exd5 {[%clk 0:01:27]}  exd5 {[%clk 0:00:17]} 25. Qd4 {[%clk 0:01:24]}  Ne4 {[%clk 0:00:16]} 26. f3 {[%clk 0:01:11]}  Ng5 {[%clk 0:00:16]} 27. Kg2 {[%clk 0:00:56]}  Nxf3 {[%clk 0:00:14]} 28. Qc5 {[%clk 0:00:56]}  Ne5 {[%clk 0:00:11]} 29. Rxc7 {[%clk 0:00:57]}  Nd3 {[%clk 0:00:11]} 30. Qa7 {[%clk 0:00:51]}  Rf2+ {[%clk 0:00:06]} 31. Kg1 {[%clk 0:00:46]}  Nxc1 {[%clk 0:00:06]} 32. Rg7+ {[%clk 0:00:37]}  Kf8 {[%clk 0:00:06]} 33. Rxh7 {[%clk 0:00:37]}  Kg8 {[%clk 0:00:01]} 34. Qg7# {[%clk 0:00:36]} 1-0


[Site "https://www.chess.com"]

[Event "Titled Tuesday Blitz April 12 Early 2022"]
[White "Aggelis, Nikolaos"]
[Black "Zaksaite, Salomeja"]
[WhiteFideId "4213220"]
[BlackFideId "12801496"]
[WhiteElo "2154"]
[BlackElo "1953"]
[Result "0-1"]
[Round "02"]
[TimeControl "180+1"]
[Date "2022.04.13"]
[WhiteClock "0:00:43"]
[BlackClock "0:00:17"]

1. d4 {[%clk 0:02:49]}  Nf6 {[%clk 0:02:59]} 2. g3 {[%clk 0:02:50]}  g6 {[%clk 0:02:59]} 3. Bg2 {[%clk 0:02:50]}  Bg7 {[%clk 0:02:59]} 4. Nf3 {[%clk 0:02:51]}  O-O {[%clk 0:03:00]} 5. O-O {[%clk 0:02:47]}  d5 {[%clk 0:03:00]} 6. c4 {[%clk 0:02:46]}  dxc4 {[%clk 0:02:59]} 7. Na3 {[%clk 0:02:44]}  Nc6 {[%clk 0:02:58]} 8. Nxc4 {[%clk 0:02:44]}  Be6 {[%clk 0:02:59]} 9. Nce5 {[%clk 0:02:45]}  Bd5 {[%clk 0:02:58]} 10. Qc2 {[%clk 0:02:42]}  a5 {[%clk 0:02:57]} 11. Re1 {[%clk 0:02:42]}  a4 {[%clk 0:02:57]} 12. e4 {[%clk 0:02:42]}  Be6 {[%clk 0:02:53]} 13. Nxc6 {[%clk 0:02:41]}  bxc6 {[%clk 0:02:53]} 14. Qxc6 {[%clk 0:02:40]}  Qd6 {[%clk 0:02:49]} 15. Qc3 {[%clk 0:02:38]}  Nd7 {[%clk 0:02:44]} 16. Be3 {[%clk 0:02:37]}  c6 {[%clk 0:02:44]} 17. Rac1 {[%clk 0:02:36]}  Rfc8 {[%clk 0:02:43]} 18. a3 {[%clk 0:02:27]}  c5 {[%clk 0:02:43]} 19. dxc5 {[%clk 0:02:25]}  Bxc3 {[%clk 0:02:41]} 20. cxd6 {[%clk 0:02:25]}  Bxe1 {[%clk 0:02:41]} 21. Rxe1 {[%clk 0:02:25]}  exd6 {[%clk 0:02:41]} 22. Bf4 {[%clk 0:02:24]}  Rc2 {[%clk 0:02:39]} 23. Nd4 {[%clk 0:02:20]}  Rxb2 {[%clk 0:02:37]} 24. Nxe6 {[%clk 0:02:21]}  fxe6 {[%clk 0:02:36]} 25. Bxd6 {[%clk 0:02:21]}  Rc8 {[%clk 0:02:33]} 26. e5 {[%clk 0:01:51]}  Rcc2 {[%clk 0:02:32]} 27. Rf1 {[%clk 0:01:51]}  Kf7 {[%clk 0:02:28]} 28. Be4 {[%clk 0:01:49]}  Re2 {[%clk 0:02:25]} 29. Bd3 {[%clk 0:01:49]}  Red2 {[%clk 0:02:22]} 30. Bc4 {[%clk 0:01:48]}  Nb6 {[%clk 0:02:16]} 31. Ba6 {[%clk 0:01:44]}  Nd5 {[%clk 0:02:12]} 32. h4 {[%clk 0:01:41]}  h5 {[%clk 0:01:23]} 33. Bc4 {[%clk 0:01:36]}  Ke8 {[%clk 0:01:19]} 34. Bxd5 {[%clk 0:01:07]}  exd5 {[%clk 0:01:18]} 35. e6 {[%clk 0:01:08]}  d4 {[%clk 0:00:56]} 36. Rc1 {[%clk 0:01:06]}  Rdc2 {[%clk 0:00:55]} 37. Rd1 {[%clk 0:01:03]}  Rxf2 {[%clk 0:00:44]} 38. Rxd4 {[%clk 0:01:03]}  Rg2+ {[%clk 0:00:44]} 39. Kf1 {[%clk 0:00:57]}  Rgd2 {[%clk 0:00:38]} 40. Rxd2 {[%clk 0:00:56]}  Rxd2 {[%clk 0:00:39]} 41. Bb4 {[%clk 0:00:56]}  Rb2 {[%clk 0:00:37]} 42. Bc5 {[%clk 0:00:56]}  Rc2 {[%clk 0:00:34]} 43. Bb4 {[%clk 0:00:56]}  Rc4 {[%clk 0:00:31]} 44. Ke2 {[%clk 0:00:56]}  Rxb4 {[%clk 0:00:28]} 45. axb4 {[%clk 0:00:56]}  a3 {[%clk 0:00:28]} 46. b5 {[%clk 0:00:47]}  a2 {[%clk 0:00:27]} 47. b6 {[%clk 0:00:48]}  a1=Q {[%clk 0:00:27]} 48. b7 {[%clk 0:00:49]}  Qa6+ {[%clk 0:00:26]} 49. Ke3 {[%clk 0:00:48]}  Qxb7 {[%clk 0:00:27]} 50. Kf4 {[%clk 0:00:47]}  Ke7 {[%clk 0:00:28]} 51. Kg5 {[%clk 0:00:47]}  Kxe6 {[%clk 0:00:17]} 52. Kxg6 {[%clk 0:00:47]}  Qf7+ {[%clk 0:00:17]} 53. Kg5 {[%clk 0:00:44]}  Qf5+ {[%clk 0:00:17]} 54. Kh6 {[%clk 0:00:44]}  Kf7 {[%clk 0:00:17]} 55. g4 {[%clk 0:00:43]}  Qg6# {[%clk 0:00:17]} 0-1


[Site "https://www.chess.com"]